{"text_format":"1","workbook":"xlsx","n_sheets":5,"sheets":["مطالب درس","1- آشنایی با تابع","2- شروع کار ","3- مثالی از ادغام داده ها","about"],"not_rendered":{"charts":0,"images":1,"macros":0,"external_links":0,"defined_names":8,"comments":0,"pivot_tables":0},"unopened":[],"bounds":{"document_bytes":16777216,"sheet_cells":100000,"rows_first":2000,"rows_last":500,"rows_between":2000,"halvings":0,"cell_chars":16384,"cell_head_chars":4096},"cells_cut":0,"cells_raw":0,"read":"whole","date_system":"1900"}

{"sheet":"مطالب درس","index":0,"n_rows":3,"n_cols":3,"rows_kept":3,"cut":false,"hidden":false,"merged":[[29,2,29,3],[31,2,39,10],[5,2,28,10]]}
[]
[]
[null,null,"تابع Vlookup در اکسل"]

{"sheet":"1- آشنایی با تابع","index":1,"n_rows":31,"n_cols":7,"rows_kept":31,"cut":false,"hidden":false,"merged":[]}
[]
[]
[null,"کد دانش آموز","نام دانش آموز","فارسی","قرآن","نقاشی","ریاضی"]
[null,1200,"kaveh",20,16,16.5,19]
[null,1100,"bahar",14,14.5,20,15.5]
[null,2000,"ali",19,16,8,20]
[null,1600,"nazi",18,15.5,15,12]
[]
[null,null,null,null,null,null,"به این سوالات پاسخ دهید."]
[]
[null,null,null,null,null,null,"الف) در جلوی اسم بهار در سومین ستون جدول چه مقداری نوشته شده است؟"]
[]
[]
[]
[null,"کد دانش آموز","نام دانش آموز","فارسی","قرآن","نقاشی","ریاضی"]
[null,1200,"kaveh",20,16,16.5,19]
[null,1100,"bahar",14,14.5,20,15.5]
[null,2000,"ali",19,16,8,20]
[null,1600,"nazi",18,15.5,15,12]
[]
[]
[null,null,null,null,null,null,"ب) در جلوی کد دانش آموزی 2000 در دومین ستون جدول چه مقداری نوشته شده است؟"]
[]
[]
[]
[]
[null,"کد دانش آموز","نام دانش آموز","فارسی","قرآن","نقاشی","ریاضی"]
[null,1200,"kaveh",20,16,16.5,19]
[null,1100,"bahar",14,14.5,20,15.5]
[null,2000,"ali",19,16,8,20]
[null,1600,"nazi",18,15.5,15,12]

{"sheet":"2- شروع کار ","index":2,"n_rows":35,"n_cols":7,"rows_kept":35,"cut":false,"hidden":false,"merged":[]}
[]
[]
[null,"کد دانش آموز","نام دانش آموز","فارسی","قرآن","نقاشی","ریاضی"]
[null,1200,"kaveh",20,16,16.5,19]
[null,1100,"bahar",14,14.5,20,15.5]
[null,2000,"ali",19,16,8,20]
[null,1600,"nazi",18,15.5,15,12]
[]
[]
[null,null,null,null,null,null,"الف) در جلوی اسم بهار در سومین ستون جدول چه مقداری نوشته شده است؟"]
[]
[null,null,{"$f":"VLOOKUP(\"BAHAR\",C:E, 3, 0)","v":14.5},null," =VLOOKUP(\"BAHAR\",C:E, 3, 0)"]
[]
[]
[null,null,null,null,null,null,"ب) در جلوی کد دانش آموزی 2000 در دومین ستون جدول چه مقداری نوشته شده است؟"]
[]
[null,null,{"$f":"VLOOKUP(2000,B:F, 2, 0)","v":"ali"},null," =VLOOKUP(2000,B:F, 2, 0)"]
[]
[]
[null,null,null,null,null,null,"ج) اطلاعات کد دانش آموزی که در سلول زرد رنگ نوشته شده است را نمایش دهید؟"]
[]
[null,null,null,null,1100]
[]
[null,null,null,"نام دانش آموز",{"$f":"VLOOKUP($E$22,B:G,2,0)","v":"bahar"}]
[null,null,null,"فارسی",{"$f":"VLOOKUP($E$22,B:G,3,0)","v":14}]
[null,null,null,"قرآن",{"$f":"VLOOKUP($E$22,B:G,4,0)","v":14.5}]
[null,null,null,"نقاشی",{"$f":"VLOOKUP($E$22,B:G,5,0)","v":20}]
[null,null,null,"ریاضی",{"$f":"VLOOKUP($E$22,B:G,6,0)","v":15.5}]
[]
[null,null,null,null,null,null,"د) چرا فرمول زیر خطا می دهد؟"]
[]
[null,null,{"$f":"VLOOKUP(\"KAVEH\", C:F, 5, 0)","v":{"$error":"#REF!"}},null," =VLOOKUP(\"KAVEH\", C:F, 5, 0)"]
[]
[null,null,null,null,null,null,"پاسخ: انتخاب جدول اشتباه بوده است و حداقل باید تا ستون G جدول ما باشد."]
[null,null,null,null,null,"یعنی جدول ما C:G باشد."]

{"sheet":"3- مثالی از ادغام داده ها","index":3,"n_rows":23,"n_cols":12,"rows_kept":23,"cut":false,"hidden":false,"merged":[[22,8,22,11]]}
[]
[]
[]
[]
[null,"نام کالا","تعداد موجودی",null,"نام کالا","تعداد سفارشات",null,null,"نام کالا","تعداد موجودی","تعداد سفارش","برنامه تولید"]
[null,"مداد قرمز",50,null,"مداد سبز",35,null,null,"مداد قرمز",{"$f":"IFERROR(VLOOKUP(I6,B:C,2,0),0 )","v":50},{"$f":"IFERROR(  VLOOKUP(I6,E:F,2,0), 0 )","v":0},{"$f":"IF( J6 > K6, \"تولید نمی خواهد\", K6-J6)","v":"تولید نمی خواهد"}]
[null,"مداد سبز",100,null,"مداد بنفش",105,null,null,"مداد سبز",{"$f":"IFERROR(VLOOKUP(I7,B:C,2,0),0 )","v":100},{"$f":"IFERROR(  VLOOKUP(I7,E:F,2,0), 0 )","v":35},{"$f":"IF( J7 > K7, \"تولید نمی خواهد\", K7-J7)","v":"تولید نمی خواهد"}]
[null,"مداد آبی",200,null,"مداد سیاه",90,null,null,"مداد آبی",200,0,"تولید نمی خواهد"]
[null,"مداد بنفش",80,null,"مداد صورتی",70,null,null,"مداد بنفش",80,105,25]
[null,"مداد سیاه",66,null,"مداد نارنجی",50,null,null,"مداد سیاه",66,90,24]
[null,"مداد صورتی",132,null,null,null,null,null,"مداد صورتی",132,70,"تولید نمی خواهد"]
[null,null,null,null,null,null,null,null,"مداد نارنجی",0,50,50]
[null,null,null,null,null,null,null,null,"مداد سفید",0,0,0]
[null,null,null,null,null,null,null,null,"مداد خاکستری",0,0,0]
[]
[]
[]
[null,null,null,null,null,null,null,null,null,null,null,"توجه : معمولا ما تابع VLOOKUP را در داخل یک تابع IFERROR قرار می دهیم"]
[null,null,null,null,null,null,null,null,null,null,null,"تا اگر تابع VLOOKUP نتوانست یک مقدار را پیدا کند، به ما خطا ندهد ."]
[null,null,null,null,null,null,null,null,null,null,null,"در این مثال اگر VLOOKUP در لیست ها نام کالایی را پیدا نکند ، تعداد "]
[null,null,null,null,null,null,null,null,null,null,null,"سفارش یا موجود را عدد صفر نمایش می دهد."]
[]
[null,null,null,null,null,null,null,null," =IFERROR(  VLOOKUP(         )   , 0  )"]

{"sheet":"about","index":4,"n_rows":3,"n_cols":3,"rows_kept":3,"cut":false,"hidden":false,"merged":[[2,2,17,10]]}
[]
[null,"خوش باشید  :)"]
[null,null,"\nفرشــید میــدانی\n------------------------------------------------------------------------------------\n فـرســـاران، آمــوزش های تخصصی مایکروسافت اکســل\nwww.farsaran.com\n\n"]